fUSD/lending_fUSD_20260112
["ID","MTS","AMOUNT","RATE_DAILY","PERIOD"]
[401452877,1768233065401,-170.178937,0.00017999,2]
[401452878,1768233065412,-151.0,0.00017999,2]
[401452879,1768233065423,-170.178937,0.00017999,2]
[401452880,1768233065436,-154.393056,0.00017999,2]
[401452881,1768233065446,-170.178937,0.00017999,2]
[401452882,1768233065456,-170.178937,0.00017999,2]
[401452883,1768233065466,-151.0,0.00017999,2]
[401452884,1768233065476,-363.473571,0.00017999,2]
[401452885,1768233065486,-151.0,0.00017999,2]
[401452886,1768233065496,-363.473571,0.00017999,2]
[401452887,1768233065506,-151.0,0.00017999,2]
[401452888,1768233065516,-363.473571,0.00017999,2]
[401452889,1768233065527,-363.473571,0.00017999,2]
[401452890,1768233065536,-304.471078,0.00017999,2]
[401452891,1768233065546,-304.471078,0.00017999,2]
[401452892,1768233065556,-304.471078,0.00017999,2]
[401452893,1768233065566,-304.471078,0.00017999,2]
[401452894,1768233065575,-151.0,0.00017999,2]
[401452895,1768233065585,-174.555522,0.00017999,2]
[401452896,1768233065595,-151.0,0.00017999,2]
[401452897,1768233065605,-151.0,0.00017999,2]
[401452898,1768233065615,-151.0,0.00017999,2]
[401452899,1768233065625,-151.0,0.00017999,2]
[401452900,1768233065644,-325.126375,0.00017999,2]
[401452901,1768233065656,-325.126375,0.00017999,2]
[401452902,1768233065666,-325.126375,0.00017999,2]
[401452903,1768233065678,-151.0,0.00017999,2]
[401452904,1768233065688,-1819.044572,0.00017999,2]
[401452905,1768233065698,-325.126375,0.00017999,2]
[401452906,1768233065708,-1819.044572,0.00017999,2]
[401452907,1768233065718,-1819.044572,0.00017999,2]
[401452908,1768233065729,-151.0,0.00017999,2]
[401452909,1768233065738,-300.0,0.00017999,2]
[401452910,1768233065748,-1819.044572,0.00017999,2]
[401452911,1768233065758,-151.0,0.00017999,2]
[401452912,1768233065769,-151.0,0.00017999,2]
[401452913,1768233065779,-151.0,0.00017999,2]
[401452914,1768233065789,-151.0,0.00017999,2]
[401452915,1768233065799,-244.133882,0.00017999,2]
[401452916,1768233065810,-151.0,0.00017999,2]
[401452917,1768233065821,-151.0,0.00017999,2]
[401452918,1768233065831,-151.0,0.00017999,2]
[401452919,1768233065841,-244.133882,0.00017999,2]
[401452920,1768233065851,-151.0,0.00017999,2]
[401452921,1768233065861,-168.070293,0.00017999,2]
[401452922,1768233065871,-244.133882,0.00017999,2]
[401452923,1768233065882,-151.0,0.00017999,2]
[401452924,1768233065891,-244.133882,0.00017999,2]
[401452925,1768233065901,-151.0,0.00017999,2]
[401452926,1768233065911,-151.0,0.00017999,2]
[401452927,1768233065922,-151.0,0.00017999,2]
[401452928,1768233065938,-151.0,0.00017999,2]
[401452929,1768233065948,-151.0,0.00017999,2]
[401452930,1768233065958,-151.0,0.00017999,2]
[401452931,1768233065970,-159.975585,0.00017999,2]
[401452932,1768233065980,-151.0,0.00017999,2]
[401452933,1768233065990,-151.0,0.00017999,2]
[401452934,1768233066001,-151.0,0.00017999,2]
[401452935,1768233066018,-204.029286,0.00017999,2]
[401452936,1768233066028,-151.0,0.00017999,2]
[401452937,1768233066039,-151.0,0.00017999,2]
[401452938,1768233066049,-151.0,0.00017999,2]
[401452939,1768233066059,-151.0,0.00017999,2]
[401452940,1768233066070,-151.0,0.00017999,2]
[401452941,1768233066079,-151.0,0.00017999,2]
[401452942,1768233066089,-151.0,0.00017999,2]
[401452943,1768233066099,-151.0,0.00017999,2]
[401452944,1768233066109,-1352.161222,0.00017999,2]
[401452945,1768233066119,-1352.161222,0.00017999,2]
[401452946,1768233066129,-151.0,0.00017999,2]
[401452947,1768233066140,-1352.161222,0.00017999,2]
[401452948,1768233066150,-1352.161222,0.00017999,2]
[401452949,1768233066160,-151.0,0.00017999,2]
[401452950,1768233066169,-151.0,0.00017999,2]
[401452951,1768233066184,-151.0,0.00017999,2]
[401452952,1768233066193,-300.0,0.00017999,2]
[401452953,1768233066203,-268.270545,0.00017999,2]
[401452954,1768233066214,-268.270545,0.00017999,2]
[401452955,1768233066224,-268.270545,0.00017999,2]
[401452956,1768233066235,-151.0,0.00017999,2]
[401452957,1768233066246,-268.270545,0.00017999,2]
[401452958,1768233066256,-151.0,0.00017999,2]
[401452959,1768233066267,-200.619272,0.00017999,2]
[401452960,1768233066278,-193.153439,0.00017999,2]
[401452961,1768233066288,-378.862944,0.00017999,2]
[401452962,1768233066298,-193.153439,0.00017999,2]
[401452963,1768233066308,-378.862944,0.00017999,2]
[401452964,1768233066317,-475.742154,0.00017999,2]
[401452965,1768233066328,-506.307155,0.00017999,2]
[401452966,1768233066339,-378.862944,0.00017999,2]
[401452967,1768233066350,-475.742154,0.00017999,2]
[401452968,1768233066360,-193.153439,0.00017999,2]
[401452969,1768233066374,-506.307155,0.00017999,2]
[401452970,1768233066385,-475.742154,0.00017999,2]
[401452971,1768233066395,-378.862944,0.00017999,2]
[401452972,1768233066407,-151.0,0.00017999,2]
[401452973,1768233066419,-193.153439,0.00017999,2]
[401452974,1768233066432,-506.307155,0.00017999,2]
[401452975,1768233066442,-475.742154,0.00017999,2]
[401452976,1768233066452,-151.0,0.00017999,2]
[401452977,1768233066462,-506.307155,0.00017999,2]
[401452978,1768233066472,-751.521096,0.00017999,2]
[401452979,1768233066484,-226.394324,0.00017999,2]
[401452980,1768233066496,-751.521096,0.00017999,2]
[401452981,1768233066507,-751.521096,0.00017999,2]
[401452982,1768233066518,-151.0,0.00017999,2]
[401452983,1768233066531,-751.521096,0.00017999,2]
[401452984,1768233066541,-175.71837,0.00017999,2]
[401452985,1768233066552,-323.444424,0.00017999,2]
[401452986,1768233066566,-151.0,0.00017999,2]
[401452987,1768233066577,-323.444424,0.00017999,2]
[401452988,1768233066586,-151.0,0.00017999,2]
[401452989,1768233066598,-323.444424,0.00017999,2]
[401452990,1768233066609,-151.0,0.00017999,2]
[401452991,1768233066618,-323.444424,0.00017999,2]
[401452992,1768233066628,-224.390729,0.00017999,2]
[401452993,1768233066638,-151.0,0.00017999,2]
[401452994,1768233066648,-370.607218,0.00017999,2]
[401452995,1768233066658,-370.607218,0.00017999,2]
[401452996,1768233066668,-370.607218,0.00017999,2]
[401452997,1768233066678,-370.607218,0.00017999,2]
[401452998,1768233066687,-151.0,0.00017999,2]
[401452999,1768233066697,-151.0,0.00017999,2]
[401453000,1768233066707,-300.0,0.00017999,2]
[401453001,1768233066717,-50000.0,0.00018,2]
[401453002,1768233066727,-50000.0,0.00018,2]
[401453003,1768233066738,-50000.0,0.00018,2]
[401453004,1768233066748,-50000.0,0.00018,2]
[401453005,1768233066758,-50000.0,0.00018,2]
[401453006,1768233066771,-50000.0,0.00018,2]
[401453007,1768233066781,-50000.0,0.00018,2]
[401453008,1768233066793,-150.0,0.00018,2]
[401453009,1768233066805,-238.54591428,0.00018,2]
[401453010,1768233066815,-233.0532054,0.00018,2]
[401453011,1768233066826,-150.0,0.00018,2]
[401453012,1768233066837,-150.0,0.00018,2]
[401453013,1768233066848,-262.93548,0.00018,2]
[401453014,1768233066859,-184.66980155,0.00018,2]
[401453015,1768233066869,-150.0,0.00018,2]
[401453016,1768233066880,-150.0,0.00018,2]
[401453017,1768233066890,-150.0,0.00018,2]
[401453018,1768233066901,-150.0,0.00018,2]
[401453019,1768233066912,-150.0,0.00018,2]
[401453020,1768233067059,-150.0,0.00018,2]
[401453021,1768233067069,-174.59325616,0.00018,2]
[401453022,1768233067078,-4243523.14668894,0.00018,2]
[401453023,1768233067088,-56299.24238035,0.00018,2]
[401453024,1768233067098,-11997.43,0.00018,3]
[401453025,1768233067107,-1221166.60858367,0.00018,2]
[401453026,1768233067637,-164.06,0.00013845,2]
[401453027,1768233067649,-1482.53320655,0.000159,2]
[401453028,1768233067660,-151.0,0.00017788,2]
[401453029,1768233067669,-152.1669,0.00017788,2]
[401453030,1768233067681,-2851.15131653,0.00017788,2]
[401453031,1768233067692,-181.17408847,0.00017788,2]
[401453032,1768233067702,-151.0,0.00017788,2]
[401453033,1768233067712,-151.0,0.00017788,2]
[401453034,1768233067722,-152.1669,0.00017788,2]
[401453035,1768233067732,-3032.325405,0.00017788,2]
[401453036,1768233067742,-151.0,0.00017788,2]
[401453037,1768233067752,-275.6214226,0.00017788,2]
[401453038,1768233067787,-424.64764106,0.00017788,2]
[401453039,1768233067798,-1253.26704223,0.00017788,2]
[401453040,1768233067847,-627.47914532,0.00017788,2]
[401453041,1768233091581,30000.0,0.000202,30]
[401453042,1768233170496,190.71,0.00016968,30]
[401453049,1768233347693,500.0,0.00027397,120]
[401453080,1768234232025,-500.0,0.0001513,2]
[401453081,1768234232035,-250.0,0.0001513,2]
[401453082,1768234232045,-250.0,0.00015209,2]
[401453083,1768234232056,-500.0,0.00015397,2]
[401453084,1768234232066,-500.0,0.00015397,2]
[401453085,1768234232074,-500.0,0.00015397,2]
[401453086,1768234232083,-240.42,0.00015624,2]
[401453087,1768234232092,-300.0,0.00016031,2]
[401453088,1768234232101,-1200.0,0.00016031,2]
[401453089,1768234232110,-6141.5,0.00016032,2]
[401453090,1768234232119,-151.0,0.00016032,2]
[401453091,1768234232127,-151.0,0.00016032,2]
[401453092,1768234232135,-3143.44680968,0.00016056,2]
[401453093,1768234232146,-148.70319032,0.00016056,2]
[401453094,1768234232155,-1000.0,0.00016059,2]
[401453095,1768234232164,-720.70001355,0.00016072,2]
[401453096,1768234232176,-779.29998645,0.00016072,2]
[401453097,1768234232185,-150.0,0.000162,2]
[401453098,1768234232196,-150.0,0.000162,2]
[401453099,1768234232206,-150.0,0.000162,2]
[401453100,1768234232215,-150.0,0.000162,2]
[401453101,1768234232224,-150.0,0.000162,2]
[401453102,1768234232234,-150.0,0.000162,2]
[401453103,1768234232244,-150.0,0.000162,2]
[401453104,1768234232254,-150.0,0.000162,2]
[401453106,1768234232264,-228.69882328,0.00016244,2]
[401453108,1768234232273,-200.0,0.00016301,2]
[401453110,1768234232282,-500.0,0.00016335,2]
[401453112,1768234232292,-150.0,0.000164,2]
[401453114,1768234232301,-9999.99,0.00016438,2]
[401453116,1768234232311,-19262.68,0.00016438,2]
[401453118,1768234232324,-151.0,0.00016438,2]
[401453119,1768234232334,-3240.0,0.00016439,2]
[401453120,1768234232344,-240.42,0.00016492,2]
[401453121,1768234232353,-150.0,0.000166,2]
[401453122,1768234232365,-1000.0,0.00016625,2]
[401453123,1768234232375,-195.0,0.00016643,2]
[401453124,1768234232385,-250.0,0.00016643,2]
[401453125,1768234232395,-150.0,0.0001665,2]
[401453126,1768234232404,-1000.0,0.00016661,2]
[401453127,1768234232414,-312.0,0.0001674,2]
[401453128,1768234232424,-150.0,0.000168,2]
[401453129,1768234232434,-150.0,0.000168,2]
[401453130,1768234232443,-150.0,0.000168,2]
[401453131,1768234232454,-321.9501,0.00016886,2]
[401453132,1768234232463,-3393.2867,0.000169,2]
[401453133,1768234232474,-19935.4407,0.000169,2]
[401453134,1768234232484,-200.0,0.00016983,2]
[401453135,1768234232494,-59952.91,0.00016986,2]
[401453136,1768234232504,-150.0,0.00017,2]
[401453137,1768234232515,-250.0,0.00017,2]
[401453138,1768234232526,-2400.0,0.00017,2]
[401453139,1768234232536,-2500.0,0.00017,2]
[401453140,1768234232545,-289.93259153,0.00017,2]
[401453141,1768234232555,-243.78973722,0.0001703,2]
[401453142,1768234232565,-533.88981491,0.00017035,2]
[401453143,1768234232574,-500.0,0.00017035,2]
[401453144,1768234232584,-500.0,0.00017035,2]
[401453145,1768234232594,-500.0,0.00017035,2]
[401453146,1768234232603,-398.69804613,0.00017035,2]
[401453147,1768234232613,-500.0,0.00017035,2]
[401453148,1768234232622,-500.0,0.00017035,2]
[401453149,1768234232632,-500.0,0.00017035,2]
[401453150,1768234232642,-500.0,0.00017035,2]
[401453151,1768234232651,-500.0,0.00017035,2]
[401453152,1768234232660,-500.0,0.00017035,2]
[401453153,1768234232670,-500.0,0.00017035,2]
[401453154,1768234232679,-500.0,0.00017035,2]
[401453155,1768234232689,-500.0,0.00017035,2]
[401453156,1768234232699,-500.0,0.00017035,2]
[401453157,1768234232710,-500.0,0.00017035,2]
[401453158,1768234232720,-500.0,0.00017035,2]
[401453159,1768234232729,-628.77903219,0.00017035,2]
[401453160,1768234232739,-500.0,0.00017035,2]
[401453161,1768234232750,-500.0,0.00017035,2]
[401453162,1768234232761,-500.0,0.00017035,2]
[401453163,1768234232772,-322.6107,0.00017035,2]
[401453164,1768234232782,-500.0,0.00017035,2]
[401453165,1768234232791,-500.0,0.00017035,2]
[401453166,1768234232803,-620.0,0.00017035,2]
[401453167,1768234232814,-998.0,0.00017035,2]
[401453168,1768234232824,-210.0,0.00017036,2]
[401453169,1768234232834,-500.95743752,0.00017073,2]
[401453170,1768234232844,-500.0,0.00017073,2]
[401453171,1768234232855,-500.0,0.00017073,2]
[401453172,1768234232865,-500.0,0.00017073,2]
[401453173,1768234232874,-165.11,0.0001709,2]
[401453174,1768234232884,-515.41,0.00017099,2]
[401453175,1768234232894,-150.0,0.000171,2]
[401453176,1768234232903,-1320.92518454,0.000171,2]
[401453177,1768234232917,-1079.07481546,0.000171,2]
[401453178,1768234232927,-169.56518454,0.000171,2]
[401453179,1768234232960,-316.23148142,0.000171,2]
[401453180,1768234238119,-151.0,0.00016029,2]
[401453181,1768234238130,-151.0,0.00016029,2]
[401453182,1768234238141,-205.7289059,0.00016985,2]
[401453183,1768234238152,-194.50273363,0.00016985,2]
[401453184,1768234238163,-598.02903471,0.00016985,2]
[401453185,1768234238175,-171.84393462,0.00016985,2]
[401453186,1768234238187,-293.0,0.00017042,2]
[401453187,1768234238197,-459.06947686,0.000171,2]
[401453188,1768234238352,-455.08116405,0.000171,2]
[401453189,1768234238365,-34771.67472464,0.000171,2]
[401453190,1768234238577,-21383.45218731,0.000171,2]
[401453191,1768234238590,-485.4300017,0.000171,2]
[401453192,1768234238671,-245784.95220162,0.000171,2]
[401453423,1768234241257,-2834.41185658,0.000171,2]
[401453425,1768234241271,-356.21829763,0.000171,2]
[401453594,1768234246399,-53745.69119303,0.000171,2]
[401453595,1768234246411,-21858.69824548,0.000171,2]
[401453596,1768234246424,-100743.55343815,0.000171,2]
[401453597,1768234246782,-324.61969438,0.000171,2]
[401453598,1768234246803,-1050.85008008,0.000171,2]
[401453599,1768234247190,-462.28138314,0.000171,2]
[401453610,1768234667070,500.0,0.00014,3]
[401453622,1768234719916,500.0,0.0001425,5]
[401453644,1768235432069,-249.0,0.00012064,2]
[401453645,1768235432079,-169.94,0.00012064,2]
[401453646,1768235432089,-195.0,0.00014335,2]
[401453648,1768235432098,-155.16,0.00014521,2]
[401453650,1768235432108,-500.0,0.0001503,2]
[401453652,1768235432118,-169.94,0.0001508,2]
[401453654,1768235432127,-150.0,0.0001508,2]
[401453656,1768235432137,-1200.0,0.00015252,2]
[401453657,1768235432146,-300.0,0.00015252,2]
[401453658,1768235432155,-300.0,0.00015252,2]
[401453659,1768235432165,-12062.24576213,0.00015253,2]
[401453660,1768235432187,-3644.00137046,0.00015253,2]
[401453661,1768235432198,-3564.76,0.00015253,2]
[401453662,1768235432231,-1182.79273477,0.00015253,2]
[401453663,1768235432242,-4105.49267856,0.00015253,2]
[401453664,1768235432253,-5351.0,0.00015253,2]
[401453665,1768235432265,-9124.71164356,0.00015253,2]
[401453666,1768235432277,-424.72961453,0.00015253,2]
[401453667,1768235432311,-631.40074476,0.00015253,2]
[401453668,1768235432330,-5120.70545123,0.00015253,2]
[401453669,1768235432341,-1000.0,0.00015404,2]
[401453670,1768235432353,-196.11,0.00015509,2]
[401453671,1768235432363,-366.05466231,0.00015516,2]
[401453672,1768235432372,-4816.94,0.00015562,2]
[401453673,1768235432382,-1000.0,0.00015597,2]
[401453674,1768235432391,-1818.8,0.00015805,2]
[401453675,1768235432401,-1235.4443388,0.000159,2]
[401453676,1768235432411,-1235.44433876,0.000159,2]
[401453677,1768235432420,-1235.44433876,0.000159,2]
[401453678,1768235432430,-1235.44433876,0.000159,2]
[401453679,1768235432440,-1235.44433876,0.000159,2]
[401453680,1768235432449,-1000.0,0.00015902,2]
[401453681,1768235432458,-9013.34,0.00015971,2]
[401453682,1768235432468,-1000.0,0.00015994,2]
[401453683,1768235432480,-1000.0,0.00016028,2]
[401453685,1768235432489,-1235.44433876,0.00016042,2]
[401453687,1768235432499,-1000.0,0.00016068,2]
[401453689,1768235432509,-620.09775737,0.00016076,2]
[401453691,1768235432518,-195.86303957,0.00016076,2]
[401453693,1768235432527,-2951.414,0.00016077,2]
[401453695,1768235432537,-167.44,0.00016077,2]
[401453697,1768235432546,-20666.84,0.00016079,2]
[401453700,1768235432555,-1000.0,0.00016083,2]
[401453704,1768235432565,-1000.0,0.00016089,2]
[401453707,1768235432575,-1000.0,0.00016091,2]
[401453709,1768235432584,-4471.02374928,0.00016134,2]
[401453711,1768235432593,-2428.9506,0.00016134,2]
[401453713,1768235432603,-999.0,0.00016142,3]
[401453715,1768235432612,-1000.0,0.00016153,2]
[401453717,1768235432621,-500.0,0.00016164,2]
[401453719,1768235432631,-500.0,0.00016164,2]
[401453721,1768235432640,-150.0,0.00016164,2]
[401453723,1768235432649,-500.0,0.00016164,2]
[401453725,1768235432658,-150.0,0.00016164,2]
[401453727,1768235432669,-1000.0,0.00016184,2]
[401453729,1768235432680,-189.07923267,0.00016185,2]
[401453731,1768235432689,-150.0,0.000162,2]
[401453733,1768235432698,-150.0,0.000162,2]
[401453735,1768235432708,-150.0,0.000162,2]
[401453737,1768235432717,-150.0,0.000162,2]
[401453739,1768235432728,-150.0,0.000162,2]
[401453741,1768235432737,-29367.79832888,0.000162,5]
[401453743,1768235432746,-622.7411185,0.00016217,2]
[401453745,1768235432756,-500.0,0.00016219,2]
[401453747,1768235432765,-500.0,0.00016219,2]
[401453749,1768235432775,-500.0,0.00016219,2]
[401453751,1768235432784,-460.55,0.00016224,3]
[401453753,1768235432793,-500.0,0.00016233,2]
[401453755,1768235432802,-500.0,0.00016233,2]
[401453757,1768235432811,-500.0,0.00016233,2]
[401453759,1768235432821,-500.0,0.00016233,2]
[401453761,1768235432830,-500.0,0.00016233,2]
[401453763,1768235432839,-500.0,0.00016233,2]
[401453765,1768235432848,-1177.58596832,0.00016233,5]
[401453767,1768235432857,-17866.14131501,0.00016233,2]
[401453769,1768235432869,-3727.50947885,0.00016233,2]
[401453952,1768235438242,-150.0,0.000162,2]
[401453953,1768235438252,-150.0,0.000162,2]
[401453954,1768235438261,-150.0,0.000162,2]
[401453955,1768235438271,-150.0,0.000162,2]
[401453956,1768235438282,-105404.57321288,0.00016233,2]
[401453957,1768235438292,-150.0,0.00016233,2]
[401453958,1768235438301,-150.0,0.00016236,2]
[401453959,1768235438310,-150.0,0.00016244,2]
[401453960,1768235438319,-162.91397516,0.00016244,2]
[401453961,1768235438328,-150.0,0.0001625,2]
[401453962,1768235438337,-150.0,0.00016272,2]
[401453963,1768235438347,-500.0,0.00016274,2]
[401453964,1768235438356,-500.0,0.00016274,2]
[401453965,1768235438366,-500.0,0.00016274,2]
[401453966,1768235438376,-368.63457316,0.00016276,2]
[401453967,1768235438385,-196.11,0.00016285,2]
[401453968,1768235438395,-150.0,0.00016288,2]
[401453969,1768235438404,-150.0,0.0001629,2]
[401453970,1768235438414,-150.0,0.000163,2]
[401453971,1768235438423,-150.0,0.00016308,2]
[401453972,1768235438432,-1000.0,0.0001632,2]
[401453973,1768235438442,-500.0,0.00016328,2]
[401453974,1768235438452,-500.0,0.00016328,2]
[401453975,1768235438461,-500.0,0.00016328,2]
[401453976,1768235438470,-150.0,0.00016332,2]
[401453977,1768235438483,-150.0,0.00016344,2]
[401453978,1768235438492,-150.0,0.0001635,2]
[401453979,1768235438501,-150.0,0.0001635,2]
[401453980,1768235438511,-150.0,0.00016376,2]
[401453981,1768235438521,-1000.0,0.00016376,2]
[401453982,1768235438531,-150.0,0.0001638,2]
[401453983,1768235438541,-150.0,0.0001638,2]
[401453984,1768235438550,-500.0,0.00016383,2]
[401453985,1768235438559,-500.0,0.00016383,2]
[401453986,1768235438568,-500.0,0.00016383,2]
[401453987,1768235438577,-500.0,0.00016391,2]
[401453988,1768235438586,-1000.0,0.00016397,2]
[401453989,1768235438595,-150.0,0.000164,2]
[401453990,1768235438604,-150.0,0.000164,2]
[401453991,1768235438614,-150.0,0.00016416,2]
[401453992,1768235438624,-150.0,0.0001642,2]
[401453993,1768235438633,-309.20755794,0.00016438,2]
[401453994,1768235438643,-500.0,0.00016438,2]
[401453996,1768235438652,-500.0,0.00016438,2]
[401453998,1768235438662,-500.0,0.00016438,2]
[401454000,1768235438672,-500.0,0.00016438,2]
[401454002,1768235438686,-500.0,0.00016438,2]
[401454004,1768235438695,-500.0,0.00016438,2]
[401454005,1768235438704,-500.0,0.00016438,2]
[401454007,1768235438714,-600.0,0.00016438,2]
[401454009,1768235438727,-151.0,0.00016438,2]
[401454011,1768235438737,-150.0,0.0001645,2]
[401454014,1768235438748,-150.0,0.00016452,2]
[401454015,1768235438758,-150.0,0.00016463,2]
[401454017,1768235438767,-1852.42,0.00016467,2]
[401454019,1768235438777,-150.0,0.0001647,2]
[401454046,1768235439110,-1000.0,0.00016483,2]
[401454048,1768235439124,-150.0,0.00016484,2]
[401454050,1768235439134,-500.0,0.00016484,2]
[401454052,1768235439143,-674.0,0.00016484,2]
[401454054,1768235439152,-500.0,0.00016484,2]
[401454056,1768235439162,-150.0,0.00016488,2]
[401454058,1768235439171,-2015.86701703,0.0001649,2]
[401454060,1768235439181,-500.0,0.00016493,2]
[401454062,1768235439190,-500.0,0.00016493,2]
[401454064,1768235439199,-150.0,0.000165,2]
[401454066,1768235439208,-150.0,0.000165,2]
[401454068,1768235439218,-150.0,0.00016507,2]
[401454070,1768235439229,-368.63457312,0.00016508,2]
[401454072,1768235439238,-150.0,0.00016524,2]
[401454074,1768235439248,-150.0,0.00016539,2]
[401454076,1768235439257,-500.0,0.00016539,2]
[401454078,1768235439266,-674.0,0.00016539,2]
[401454080,1768235439275,-500.0,0.00016539,2]
[401454082,1768235439290,-500.0,0.00016548,2]
[401454084,1768235439300,-500.0,0.00016548,2]
[401454086,1768235439309,-150.0,0.0001655,2]
[401454088,1768235439318,-150.0,0.00016551,2]
[401454090,1768235439328,-150.0,0.0001656,2]
[401454092,1768235439339,-150.0,0.0001656,2]
[401454094,1768235439349,-150.0,0.00016594,2]
[401454096,1768235439358,-500.0,0.00016594,2]
[401454098,1768235439367,-674.0,0.00016594,2]
[401454100,1768235439376,-269.06323949,0.00016594,2]
[401454102,1768235439386,-150.0,0.00016595,2]
[401454104,1768235439395,-150.0,0.00016596,2]
[401454106,1768235439404,-150.0,0.000166,2]
[401454107,1768235439414,-150.0,0.000166,2]
[401454110,1768235439423,-500.0,0.00016602,2]
[401454112,1768235439433,-322.79325491,0.00016602,2]
[401454113,1768235439442,-150.0,0.00016632,2]
[401454116,1768235439452,-150.0,0.00016639,2]
[401454117,1768235439461,-150.0,0.00016648,2]
[401454120,1768235439471,-500.0,0.00016648,2]
[401454122,1768235439483,-674.0,0.00016648,2]
[401454124,1768235439493,-150.0,0.0001665,2]
[401454126,1768235439503,-150.0,0.0001665,2]
[401454128,1768235439513,-150.0,0.0001665,2]
[401454130,1768235439523,-500.0,0.00016657,2]
[401454132,1768235439533,-150.0,0.00016668,2]
[401454134,1768235439542,-2547.89988876,0.00016675,2]
[401454136,1768235439552,-150.0,0.00016683,2]
[401454138,1768235439561,-420.0,0.00016688,2]
[401454140,1768235439570,-150.0,0.000167,2]
[401454142,1768235439579,-500.0,0.00016703,2]
[401454144,1768235439588,-674.0,0.00016703,2]
[401454146,1768235439597,-150.0,0.00016704,2]
[401454148,1768235439606,-500.0,0.00016712,2]
[401454150,1768235439615,-150.0,0.00016727,2]
[401454152,1768235439624,-150.0,0.0001674,2]
[401454154,1768235439634,-150.0,0.0001674,2]
[401454156,1768235439643,-368.63457312,0.0001674,2]
[401454158,1768235439651,-150.0,0.0001675,2]
[401454159,1768235439660,-500.0,0.00016758,2]
[401454161,1768235439671,-674.0,0.00016758,2]
[401454163,1768235439683,-500.0,0.00016767,2]
[401454165,1768235439692,-150.0,0.00016771,2]
[401454167,1768235439702,-1680.0,0.00016773,2]
[401454169,1768235439712,-150.0,0.00016776,2]
[401454171,1768235439721,-789.0,0.00016799,2]
[401454173,1768235439734,-150.0,0.000168,2]
[401454175,1768235439743,-150.0,0.000168,2]
[401454177,1768235439755,-150.0,0.000168,2]
[401454180,1768235439764,-150.0,0.00016812,2]
[401454181,1768235439774,-500.0,0.00016813,2]
[401454184,1768235439784,-674.0,0.00016813,2]
[401454185,1768235439793,-150.0,0.00016815,2]
[401454187,1768235439802,-500.0,0.00016822,2]
[401454190,1768235439811,-150.0,0.0001683,2]
[401454192,1768235439820,-150.0,0.00016848,2]
[401454194,1768235439830,-150.0,0.0001685,2]
[401454196,1768235439839,-789.0,0.00016854,2]
[401454197,1768235439848,-150.0,0.00016859,2]
[401454200,1768235439858,-500.0,0.00016868,2]
[401454202,1768235439867,-674.0,0.00016868,2]
[401454204,1768235439877,-500.0,0.00016876,2]
[401454206,1768235439886,-150.0,0.00016884,2]
[401454208,1768235439895,-2587.4937,0.000169,2]
[401454210,1768235439905,-150.0,0.000169,2]
[401454212,1768235439914,-150.0,0.00016902,2]
[401454214,1768235439923,-789.0,0.00016909,2]